bitfinex/quotes_BTCUSD_20241124
["timestamp","ask_amount","ask_price","bid_price","bid_amount"]
[1732488880073,0.1248,97776.0,97775.0,0.19387438]
[1732488881231,0.1248,97776.0,97775.0,0.04091]
[1732488881457,0.1248,97776.0,97775.0,0.20410238]
[1732488881664,0.1256559,97776.0,97775.0,0.20410238]
[1732488884477,0.1251559,97776.0,97775.0,0.20410238]
[1732488887224,0.0008559,97776.0,97775.0,0.20410238]
[1732488887440,0.0008559,97776.0,97775.0,0.20512495]
[1732488888342,0.0008559,97776.0,97775.0,0.20410238]
[1732488889220,0.0008559,97776.0,97775.0,0.20512502]
[1732488889437,0.0008559,97776.0,97775.0,0.20410238]
[1732488892745,0.0008559,97776.0,97775.0,0.20512502]
[1732488894239,0.0008559,97776.0,97775.0,0.20683542]
[1732488894662,0.0008559,97776.0,97775.0,0.38701783]
[1732488894877,0.0008559,97776.0,97775.0,0.20581278]
[1732488895309,0.0008559,97776.0,97775.0,0.38599519]
[1732488896478,0.0008559,97776.0,97775.0,0.20581278]
[1732488896691,0.0008559,97776.0,97775.0,0.2068354]
[1732488897150,0.0008559,97776.0,97773.0,0.04091]
[1732488897367,0.0008559,97776.0,97774.0,0.00102262]
[1732488897878,0.0008559,97776.0,97775.0,0.04091]
[1732488898089,0.0008559,97776.0,97775.0,0.04193262]
[1732488898330,0.0008559,97776.0,97775.0,0.22142526]
[1732488898331,0.0825559,97776.0,97775.0,0.22142526]
[1732488898765,0.0825559,97776.0,97775.0,0.04091]
[1732488899659,0.1314559,97776.0,97775.0,0.04091]
[1732488903975,0.0008559,97776.0,97775.0,0.04091]
[1732488904414,0.0008559,97776.0,97775.0,0.04193265]
[1732488905898,0.0008559,97776.0,97775.0,0.04091]
[1732488906641,0.0008559,97776.0,97775.0,0.0426204]
[1732488907702,0.0815559,97784.0,97783.0,0.040906]
[1732488908662,0.23089282,97784.0,97782.0,0.27190901]
[1732488908870,0.0463,97782.0,97780.0,0.27190901]
[1732488909131,0.14831427,97782.0,97780.0,0.27190901]
[1732488909339,0.14831427,97782.0,97777.0,0.27190901]
[1732488909590,0.14831427,97782.0,97781.0,0.040907]
[1732488909591,0.0463,97782.0,97781.0,0.040907]
[1732488910570,0.1242,97782.0,97781.0,0.040907]
[1732488911795,0.1242,97782.0,97779.0,0.040908]
[1732488912004,0.00102265,97781.0,97779.0,0.040908]
[1732488912617,0.00102265,97781.0,97778.0,0.27199633]
[1732488912887,0.1263,97780.0,97779.0,0.040908]
[1732488913412,0.1263,97780.0,97779.0,0.31290433]
[1732488914611,0.1263,97780.0,97779.0,0.040908]
[1732488918375,0.1271553,97780.0,97779.0,0.040908]
[1732488919698,0.0008553,97780.0,97779.0,0.040908]
[1732488919924,0.0008553,97780.0,97779.0,0.44316394]
[1732488920618,0.0008553,97780.0,97779.0,0.44327221]
[1732488920840,0.0008553,97780.0,97779.0,0.040908]
[1732488922461,0.0008553,97780.0,97779.0,0.035908]
[1732488930047,0.0008553,97780.0,97779.0,0.03693066]
[1732488930314,0.0008553,97780.0,97779.0,0.035908]
[1732488931737,0.0008553,97780.0,97779.0,0.13792227]
[1732488932952,0.0008553,97780.0,97779.0,0.035908]
[1732488936551,0.0008553,97780.0,97779.0,0.06545655]
[1732488937448,0.0008553,97780.0,97779.0,0.035908]
[1732488942701,0.0008553,97780.0,97779.0,0.0376224]
[1732488950678,0.0008553,97780.0,97779.0,0.06712987]
[1732488952506,0.0008553,97780.0,97779.0,0.44074414]
[1732488954090,0.0008553,97780.0,97779.0,0.74661844]
[1732488954313,0.0008553,97780.0,97779.0,0.44074414]
[1732488957351,0.0008553,97780.0,97779.0,0.74661844]
[1732488958260,0.0008553,97780.0,97779.0,0.74632552]
[1732488959896,0.0008553,97780.0,97779.0,0.94632552]
[1732488960146,0.0008553,97780.0,97779.0,0.94832552]
[1732488960387,0.0008553,97780.0,97779.0,0.64274414]
[1732488961617,0.0008553,97780.0,97779.0,0.75034414]
[1732488962869,0.0771,97811.0,97805.0,0.040897]
[1732488964306,0.0464,97813.0,97805.0,0.040897]
[1732488964307,0.0464,97813.0,97805.0,0.14393363]
[1732488964542,0.0755,97818.0,97805.0,0.14291127]
[1732488964775,0.0206705,97806.0,97805.0,0.14291127]
[1732488964992,0.0206705,97806.0,97805.0,0.29291127]
[1732488966055,0.1486705,97806.0,97805.0,0.32568428]
[1732488966267,0.0676705,97806.0,97805.0,0.35512916]
[1732488966497,0.0206705,97806.0,97805.0,0.35512916]
[1732488969082,0.0201705,97806.0,97805.0,0.35512916]
[1732488969283,0.0201705,97806.0,97805.0,0.32568428]
[1732488971360,0.0201705,97806.0,97805.0,0.45548428]
[1732488971827,0.0201705,97806.0,97805.0,0.32568428]
[1732488976316,0.0210277,97806.0,97805.0,0.32568428]
[1732488977196,0.0210277,97806.0,97805.0,0.72529955]
[1732488977448,0.0210277,97806.0,97805.0,0.32568428]
[1732488987542,0.0210277,97806.0,97805.0,0.32768428]
[1732488987766,0.0210277,97806.0,97805.0,0.75641109]
[1732488988000,0.0210277,97806.0,97805.0,0.25479156]
[1732488988222,0.1489277,97806.0,97805.0,0.042611]
[1732488988915,0.2511707,97806.0,97805.0,0.18229391]
[1732488989157,0.35318497,97806.0,97805.0,0.001714]
[1732488989410,0.35318497,97806.0,97781.0,0.040907]
[1732488989411,0.1319,97794.0,97789.0,0.18057991]
[1732488989629,0.0822,97790.0,97787.0,0.18057991]
[1732488989841,0.00102265,97789.0,97786.0,0.18057991]
[1732488990068,0.00102265,97789.0,97785.0,0.18057991]
[1732488990702,0.00102265,97789.0,97787.0,0.040904]
[1732488990864,0.00102265,97789.0,97785.0,0.18057991]
[1732488991092,0.00102265,97789.0,97787.0,0.040904]
[1732488991446,0.00102265,97789.0,97788.0,0.040904]
[1732488991662,0.07713827,97806.0,97785.0,0.18057991]
[1732488991663,0.00102265,97804.0,97785.0,0.18057991]
[1732488991885,0.05413827,97806.0,97796.0,0.040901]
[1732488991886,0.0767,97797.0,97796.0,0.040901]
[1732488992573,0.0767,97797.0,97796.0,0.22155295]
[1732488992797,0.0767,97797.0,97796.0,0.040901]
[1732488994783,0.0767,97797.0,97796.0,0.22155295]
[1732488995439,0.0767,97797.0,97796.0,0.040901]
[1732488996715,0.0767,97797.0,97794.0,0.22585829]
[1732488996968,0.0767,97797.0,97796.0,0.040901]
[1732488998720,0.0787,97804.0,97803.0,0.040898]
[1732488998969,0.0787,97804.0,97803.0,0.22159235]
[1732488999657,0.0787,97804.0,97803.0,0.040898]
[1732489000799,0.0787,97804.0,97803.0,0.22160394]
[1732489001937,0.0787,97804.0,97803.0,0.040898]
[1732489002183,0.0210277,97806.0,97805.0,0.040897]
[1732489002423,0.0210277,97806.0,97805.0,0.26683486]
[1732489003350,0.0210277,97806.0,97805.0,0.36884913]
[1732489003573,0.0210277,97806.0,97805.0,0.14291127]
[1732489005225,0.0210277,97806.0,97805.0,0.17635392]
[1732489006662,0.0210277,97806.0,97805.0,0.32635392]
[1732489007112,0.0210277,97806.0,97805.0,0.44865392]
[1732489007349,0.0210277,97806.0,97805.0,0.47805257]
[1732489008265,0.00608041,97806.0,97805.0,0.67805257]
[1732489008536,4.1e-07,97806.0,97805.0,0.87805257]
[1732489009417,4.1e-07,97806.0,97805.0,1.18280166]
[1732489009637,4.1e-07,97806.0,97805.0,1.18280083]
[1732489010326,4.1e-07,97806.0,97805.0,1.31340083]
[1732489010555,4.1e-07,97806.0,97805.0,1.01065257]
[1732489011063,0.00237682,97829.0,97828.0,0.040888]
[1732489011291,0.00237682,97829.0,97828.0,0.13268027]
[1732489013280,0.00237682,97829.0,97828.0,0.5323522]
[1732489013693,0.00237682,97829.0,97828.0,0.12768027]
[1732489013873,0.00237682,97829.0,97828.0,0.5273522]
[1732489014314,0.00237682,97829.0,97828.0,0.12768027]
[1732489014526,0.00237682,97829.0,97828.0,0.16061639]
[1732489016858,0.00237682,97829.0,97828.0,0.16163845]
[1732489018699,0.00237682,97829.0,97828.0,0.16061639]
[1732489022767,0.00237682,97829.0,97828.0,0.16163846]
[1732489024521,0.00237682,97829.0,97828.0,0.025666]
[1732489024932,0.00187682,97829.0,97828.0,0.025666]
[1732489025377,0.00187682,97829.0,97828.0,0.25086309]
[1732489026250,0.00187682,97829.0,97828.0,0.25085765]
[1732489026691,0.00187682,97829.0,97828.0,0.025666]
[1732489029321,0.00187682,97829.0,97828.0,0.12768027]
[1732489029993,0.00187682,97829.0,97828.0,0.39789876]
[1732489030200,0.00187682,97829.0,97828.0,0.12768027]
[1732489030415,0.00187682,97829.0,97828.0,0.39879697]
[1732489030627,0.00187682,97829.0,97828.0,0.12768027]
[1732489031248,0.00187682,97829.0,97828.0,0.12870237]
[1732489032514,0.00187682,97829.0,97828.0,0.29335837]
[1732489032726,0.00187682,97829.0,97828.0,0.29233627]
[1732489036044,0.00187682,97829.0,97828.0,0.32166775]
[1732489036260,1e-06,97832.0,97831.0,0.2]
[1732489036522,1e-06,97832.0,97831.0,0.81831075]
[1732489036734,1e-06,97832.0,97831.0,0.31201075]
[1732489036944,0.0256705,97847.0,97845.0,0.03066]
[1732489037597,0.0256705,97847.0,97845.0,0.30043176]
[1732489037812,0.0256705,97847.0,97845.0,0.18066]
[1732489038234,0.0256705,97847.0,97845.0,0.21400524]
[1732489038446,0.0451,97855.0,97851.0,0.030658]
[1732489038665,0.00102265,97854.0,97853.0,0.030658]
[1732489038879,0.0451,97855.0,97854.0,0.030657]
[1732489044809,0.00040028,97857.0,97856.0,0.030657]
[1732489045237,0.00040028,97857.0,97856.0,0.13267127]
[1732489045686,0.00040028,97857.0,97856.0,0.58619494]
[1732489045869,0.00040028,97857.0,97856.0,0.28267127]
[1732489046348,0.00040028,97857.0,97853.0,0.030658]
[1732489046349,0.12840028,97857.0,97845.0,0.52046194]
[1732489046569,0.12840028,97857.0,97817.0,0.108669]
[1732489046570,0.00102265,97856.0,97850.0,0.30370054]
[1732489046815,0.128,97855.0,97850.0,0.39877791]
[1732489047029,0.128,97855.0,97851.0,0.39870236]
[1732489047030,0.00102265,97854.0,97851.0,0.39870236]
[1732489047504,0.00102265,97854.0,97849.0,0.39870236]
[1732489047745,0.00102265,97854.0,97852.0,0.030658]
[1732489047988,0.00102265,97854.0,97850.0,0.030659]
[1732489048231,0.00102265,97854.0,97849.0,0.39870236]
[1732489048452,0.00102265,97854.0,97845.0,0.03066]
[1732489048672,0.00102265,97854.0,97850.0,0.030659]
[1732489048893,0.00102265,97853.0,97852.0,0.39881033]
[1732489049118,0.12902265,97855.0,97852.0,0.39881033]
[1732489049376,0.00102265,97854.0,97853.0,0.39881033]
[1732489049614,0.1288567,97855.0,97853.0,0.39881033]
[1732489050298,0.1288567,97855.0,97854.0,0.39881033]
[1732489050760,0.1288567,97855.0,97853.0,0.39881033]
[1732489051210,0.1288567,97855.0,97854.0,0.39881033]
[1732489051454,0.1288567,97855.0,97839.0,0.30377322]
[1732489051679,0.1288567,97855.0,97853.0,0.030658]
[1732489051951,0.0488567,97855.0,97854.0,0.030657]
[1732489054337,0.1261567,97855.0,97847.0,0.030659]
[1732489054579,0.1261567,97855.0,97843.0,0.030661]
[1732489054580,0.00102265,97854.0,97853.0,0.030657]
[1732489055557,0.00102265,97854.0,97841.0,0.33484722]
[1732489055829,0.00102265,97854.0,97847.0,0.030659]
[1732489056053,0.00102265,97854.0,97845.0,0.03066]
[1732489056277,0.00102265,97854.0,97840.0,0.30418622]
[1732489056518,0.00102265,97854.0,97838.0,0.30418622]
[1732489056519,0.0791,97850.0,97838.0,0.30418622]
[1732489056764,0.0791,97850.0,97828.0,0.0017136]
[1732489056765,0.102196,97851.0,97850.0,0.39987229]
[1732489057011,0.102196,97851.0,97828.0,0.0017136]
[1732489057012,0.1022,97847.0,97846.0,0.39994334]
[1732489057242,0.2307,97847.0,97846.0,0.39994334]
[1732489057456,0.1285,97847.0,97845.0,0.39994334]
[1732489057685,0.10221,97838.0,97831.0,0.030664]
[1732489057927,0.204405,97845.0,97829.0,0.30418622]
[1732489057928,0.05552471,97841.0,97829.0,0.40012205]
[1732489058160,0.102219,97829.0,97828.0,0.0017136]
[1732489058356,0.1285,97829.0,97828.0,0.0017136]
[1732489058836,0.23174165,97829.0,97828.0,0.0017136]
[1732489059051,0.1285,97829.0,97828.0,0.0017136]
[1732489059266,0.33273327,97829.0,97828.0,0.0017136]
[1732489061474,0.33273327,97829.0,97828.0,0.22757081]
[1732489061707,0.33273327,97829.0,97828.0,0.0017136]
[1732489064005,0.35573327,97829.0,97828.0,0.0017136]
[1732489067567,0.02337969,97828.0,97822.0,0.22585721]
[1732489067779,0.023,97826.0,97822.0,0.22585721]
[1732489068005,0.00037969,97828.0,97820.0,0.030668]
[1732489068006,0.023,97824.0,97821.0,0.27105644]
[1732489068214,0.102226,97822.0,97821.0,0.27105644]
[1732489068448,0.10303692,97822.0,97818.0,0.30172544]
[1732489068663,0.00102265,97821.0,97818.0,0.27105644]
[1732489068891,0.00102265,97821.0,97818.0,0.30172544]
[1732489069117,0.00102265,97821.0,97815.0,0.27105644]
[1732489069118,0.1249,97817.0,97815.0,0.27105644]
[1732489069343,0.10303692,97816.0,97811.0,0.27105644]
[1732489069566,0.10303692,97816.0,97810.0,0.030671]
[1732489069833,0.20526992,97816.0,97810.0,0.030671]
[1732489070081,0.102234,97815.0,97810.0,0.030671]
[1732489070316,0.10303692,97814.0,97810.0,0.030671]
[1732489070542,0.10303692,97814.0,97811.0,0.030671]
[1732489070784,0.10303692,97814.0,97813.0,0.03067]
[1732489071703,0.00102265,97816.0,97814.0,0.03067]
[1732489071968,0.00102265,97823.0,97822.0,0.030667]
[1732489072185,0.00102265,97839.0,97827.0,0.030666]
[1732489072437,0.00102265,97848.0,97827.0,0.030666]
[1732489072647,0.00102265,97847.0,97827.0,0.43025885]
[1732489073066,0.00102265,97847.0,97827.0,0.030666]
[1732489073480,0.0008568,97829.0,97827.0,0.030666]
[1732489073697,0.0008568,97829.0,97827.0,0.43021316]
[1732489074757,0.0008568,97829.0,97827.0,0.030666]
[1732489075027,0.0008568,97829.0,97827.0,0.28370247]
[1732489075236,0.0008568,97829.0,97827.0,0.28268027]
[1732489075654,0.0008568,97829.0,97827.0,0.58686649]
[1732489075859,0.0008568,97829.0,97827.0,0.28268027]
[1732489077218,6.9e-07,97828.0,97827.0,0.32998027]
[1732489077435,4.9e-07,97829.0,97828.0,0.180666]
[1732489077669,4.9e-07,97829.0,97828.0,0.28370225]
[1732489077887,4.9e-07,97829.0,97828.0,0.31199932]
[1732489078326,4.9e-07,97829.0,97828.0,0.39219932]
[1732489079455,4.9e-07,97829.0,97828.0,0.70149932]
[1732489079702,4.9e-07,97829.0,97828.0,0.92449932]
[1732489079920,4.9e-07,97829.0,97828.0,0.92249932]
[1732489080172,4.9e-07,97829.0,97828.0,1.43270782]
[1732489080394,0.00040028,97857.0,97854.0,0.308157]
[1732489080602,0.00040028,97857.0,97854.0,0.41017127]
[1732489082558,7e-07,97855.0,97854.0,0.41017127]
[1732489082978,7e-07,97855.0,97854.0,0.44299724]
[1732489084691,9.8e-07,97857.0,97856.0,0.030657]
[1732489084902,9.8e-07,97857.0,97856.0,0.13267127]
[1732489085334,9.8e-07,97857.0,97856.0,0.28267127]
[1732489086872,0.00085808,97857.0,97856.0,0.28267127]
[1732489087108,8e-08,97857.0,97856.0,0.28267127]
[1732489089348,8e-08,97857.0,97856.0,0.28467127]
[1732489089565,8e-08,97857.0,97856.0,0.28267127]
[1732489090401,8e-08,97857.0,97856.0,0.28467127]
[1732489090621,8e-08,97857.0,97856.0,0.28267127]
[1732489091035,8e-08,97857.0,97856.0,0.28467127]
[1732489091246,8e-08,97857.0,97856.0,0.28267127]
[1732489091658,8e-08,97857.0,97856.0,0.28467127]
[1732489091870,8e-08,97857.0,97856.0,0.28267127]
[1732489093559,8e-08,97857.0,97856.0,0.28467127]
[1732489094233,8e-08,97857.0,97856.0,0.28267127]
[1732489094446,8e-08,97857.0,97856.0,0.28467127]
[1732489095780,8e-08,97857.0,97856.0,0.28267127]
[1732489095996,8e-08,97857.0,97856.0,0.28467127]
[1732489097935,8e-08,97857.0,97856.0,0.28267127]
[1732489098553,8e-08,97857.0,97856.0,0.28467127]
[1732489098769,8e-08,97857.0,97856.0,0.28267127]
[1732489099397,8e-08,97857.0,97856.0,0.28467127]
[1732489099767,8e-08,97857.0,97856.0,0.33347127]
[1732489100177,8e-08,97857.0,97856.0,0.33547127]
[1732489100405,8e-08,97857.0,97856.0,0.33347127]
[1732489100637,8e-08,97857.0,97856.0,0.33547127]
[1732489101264,8e-08,97857.0,97856.0,0.33347127]
[1732489102353,8e-08,97857.0,97856.0,0.53347127]
[1732489102597,0.023193,97873.0,97856.0,0.53547127]
[1732489102851,0.00275808,97873.0,97872.0,0.030652]
[1732489103064,0.00246313,97873.0,97872.0,0.28266627]
[1732489104015,0.00246313,97873.0,97872.0,0.030652]
[1732489106358,0.00246313,97873.0,97872.0,0.034732]
[1732489109606,0.00332023,97873.0,97872.0,0.034732]
[1732489111760,0.00027742,97873.0,97872.0,0.030652]
[1732489114256,0.00027742,97873.0,97872.0,0.06009318]
[1732489115135,0.0489,97885.0,97872.0,0.06009318]
[1732489115339,0.0489,97885.0,97877.0,0.03065]
[1732489115571,0.00042374,97886.0,97877.0,0.03065]
[1732489115572,0.00042374,97886.0,97877.0,0.13266427]
[1732489115792,0.00042374,97886.0,97877.0,0.16210545]
[1732489117570,0.00042374,97886.0,97877.0,0.19512642]
[1732489117779,0.00042374,97886.0,97877.0,0.16210545]
[1732489117989,0.00042374,97886.0,97877.0,0.46526055]
[1732489118480,0.00042374,97886.0,97877.0,0.16210545]
[1732489119163,0.00042374,97886.0,97877.0,0.46653122]
[1732489119475,0.00042374,97886.0,97877.0,0.13266427]
[1732489121868,0.00042374,97886.0,97877.0,0.16211851]
[1732489122503,0.00042374,97886.0,97877.0,0.16411851]
[1732489122716,0.00042374,97886.0,97877.0,0.16211851]
[1732489124906,0.00042374,97886.0,97877.0,0.39361851]
[1732489125354,0.00042374,97886.0,97885.0,0.030648]
[1732489125600,0.00042374,97886.0,97885.0,0.06010224]
[1732489126540,0.00042374,97886.0,97885.0,0.030648]
[1732489126776,0.00042374,97886.0,97885.0,0.0600776]
[1732489127434,0.00042374,97886.0,97885.0,0.030648]
[1732489127652,0.00042374,97886.0,97885.0,0.06007437]
[1732489127868,0.00042374,97886.0,97885.0,0.09270466]
[1732489131128,0.08024639,97886.0,97885.0,0.33582358]
[1732489131338,0.08024639,97886.0,97885.0,0.030648]
[1732489131551,0.00042374,97886.0,97885.0,0.030648]
[1732489133625,0.00128064,97886.0,97885.0,0.030648]
[1732489133856,0.00128064,97886.0,97885.0,0.33583648]
[1732489135154,0.00128064,97886.0,97885.0,0.030648]
[1732489135373,0.00128064,97886.0,97885.0,0.06007557]
[1732489135582,0.00128064,97886.0,97885.0,0.030648]
[1732489136014,0.00128064,97886.0,97885.0,0.06007661]
[1732489136451,0.00128064,97886.0,97885.0,0.06367341]
[1732489136663,0.00128064,97886.0,97885.0,0.09310341]
[1732489136878,0.00128064,97886.0,97885.0,0.06367341]
[1732489137111,0.00128064,97886.0,97885.0,0.09310281]
[1732489137334,0.00128064,97886.0,97885.0,0.06367341]
[1732489142473,0.00128064,97886.0,97885.0,0.09310248]
[1732489142692,0.00128064,97886.0,97885.0,0.06367341]
[1732489143117,0.00128064,97886.0,97885.0,0.09310339]
[1732489143556,0.00128064,97886.0,97885.0,0.06367341]
[1732489144434,0.00128064,97886.0,97885.0,0.030648]
[1732489146678,0.00128064,97886.0,97885.0,0.06008596]
[1732489147101,0.00128064,97886.0,97885.0,0.030648]
[1732489148416,0.00128064,97886.0,97885.0,0.06009078]
[1732489162733,0.00128064,97886.0,97885.0,0.02944278]
[1732489162962,0.00128064,97886.0,97885.0,0.030648]
[1732489163187,0.00128064,97886.0,97885.0,0.06009078]
[1732489165301,0.00128064,97886.0,97885.0,0.02944278]
[1732489165755,0.00128064,97886.0,97885.0,0.030648]
[1732489165979,0.00128064,97886.0,97885.0,0.06009078]
[1732489169840,0.00128064,97886.0,97885.0,0.09310665]
[1732489176711,0.00128064,97886.0,97885.0,0.09191184]
[1732489176943,0.00128064,97886.0,97885.0,0.09133328]
[1732489192834,0.00128064,97886.0,97885.0,0.09304688]
[1732489194609,0.00128064,97886.0,97885.0,0.47346115]
[1732489194858,6.4e-07,97886.0,97885.0,0.47346115]
[1732489196384,6.4e-07,97886.0,97885.0,0.50863314]
[1732489198884,0.00828217,97898.0,97897.0,0.030644]
[1732489198885,3.1e-07,97898.0,97897.0,0.030644]
[1732489199104,3.1e-07,97898.0,97897.0,0.26940105]
[1732489200199,3.1e-07,97898.0,97897.0,0.16210105]
[1732489200684,3.1e-07,97898.0,97897.0,0.23820105]
[1732489200904,3.1e-07,97898.0,97897.0,0.06008678]
[1732489201149,0.04820031,97898.0,97897.0,0.06440686]
[1732489201570,0.12550031,97898.0,97897.0,0.030644]
[1732489201816,0.12550031,97898.0,97888.0,0.15]
[1732489202064,0.00102265,97897.0,97896.0,0.030644]
[1732489202485,0.12550031,97898.0,97896.0,0.030644]
[1732489202486,0.12550031,97898.0,97897.0,0.030644]
[1732489204734,0.12635711,97898.0,97897.0,0.030644]
[1732489205656,0.00085711,97898.0,97897.0,0.16316436]
[1732489205927,0.00085711,97898.0,97897.0,0.24124289]
[1732489206172,0.000857,97904.0,97903.0,0.030642]
[1732489206428,0.000857,97904.0,97903.0,0.16214089]
[1732489207378,0.000857,97904.0,97903.0,0.06012662]
[1732489207600,0.000857,97904.0,97903.0,0.030642]
[1732489208291,0.000857,97904.0,97903.0,0.40102121]
[1732489208510,0.000857,97904.0,97898.0,0.030643]
[1732489208753,0.000857,97904.0,97885.0,0.03564039]
[1732489208754,0.00102265,97903.0,97900.0,0.030643]
[1732489208981,0.00102265,97903.0,97902.0,0.030642]
[1732489209186,0.000857,97904.0,97903.0,0.030642]
[1732489209707,0.000857,97904.0,97903.0,0.43165174]
[1732489210141,0.000857,97904.0,97903.0,0.030642]
[1732489213868,0.047857,97904.0,97903.0,0.030642]
[1732489214095,0.126357,97904.0,97903.0,0.030642]
[1732489215444,0.126357,97904.0,97866.0,0.002]
[1732489215445,0.2,97900.0,97884.0,0.3053962]
[1732489215665,0.0479,97898.0,97893.0,0.40106399]
[1732489215980,0.00102265,97897.0,97891.0,0.40106399]
[1732489216618,0.00102265,97897.0,97892.0,0.40106399]
[1732489216822,0.00102265,97897.0,97890.0,0.030646]
[1732489216823,0.00102265,97897.0,97893.0,0.40106399]
[1732489217070,0.102151,97894.0,97893.0,0.40106399]
[1732489217300,0.102151,97894.0,97878.0,0.0017138]
[1732489217301,0.102154,97891.0,97890.0,0.40106399]
[1732489217547,0.102154,97891.0,97878.0,0.0017138]
[1732489217548,0.31126017,97891.0,97887.0,0.40106399]
[1732489217758,0.00102265,97890.0,97886.0,0.27168842]
[1732489217966,0.00102265,97890.0,97884.0,0.27168842]
[1732489218184,0.102159,97886.0,97882.0,0.27168842]
[1732489218413,0.10318165,97886.0,97882.0,0.27168842]
[1732489218651,0.53530917,97886.0,97878.0,0.0017138]
[1732489218860,0.53428652,97886.0,97884.0,0.22645613]
[1732489219283,0.53428652,97886.0,97878.0,0.0017138]
[1732489219284,0.53428652,97886.0,97883.0,0.22645613]
[1732489219502,0.33428652,97886.0,97882.0,0.22645613]
[1732489219956,0.33428652,97886.0,97881.0,0.22645613]
[1732489220172,0.53428652,97886.0,97881.0,0.22645613]
[1732489220392,0.53428652,97886.0,97884.0,0.22645613]
[1732489220602,0.53428652,97886.0,97881.0,0.22645613]
[1732489220603,0.55728652,97886.0,97881.0,0.22645613]
[1732489220870,0.342966,97879.0,97878.0,0.0017138]
[1732489221119,0.44498027,97879.0,97878.0,0.0017138]
[1732489221364,0.64837781,97879.0,97878.0,0.0017138]
[1732489221805,0.192173,97873.0,97872.0,0.0017138]
[1732489222024,0.44480992,97873.0,97872.0,0.0017138]
[1732489222273,0.64378727,97873.0,97872.0,0.0017138]
[1732489222506,0.64718481,97873.0,97872.0,0.0017138]
[1732489222726,0.320189,97857.0,97854.0,0.0017142]
[1732489222940,0.42220327,97857.0,97854.0,0.0017142]
[1732489223155,0.42560081,97857.0,97854.0,0.0017142]
[1732489223888,0.44860081,97857.0,97854.0,0.0017142]
[1732489224352,0.64860081,97857.0,97854.0,0.0017142]
[1732489224826,0.13246338,97857.0,97854.0,0.0017142]
[1732489225063,0.00548603,97857.0,97855.0,0.030657]
[1732489225291,0.00548603,97857.0,97854.0,0.0017142]
[1732489225532,0.29857345,97857.0,97854.0,0.0017142]
[1732489225742,0.42106664,97857.0,97854.0,0.0017142]
[1732489225948,0.4199508,97857.0,97854.0,0.0017142]
[1732489226187,0.64406664,97857.0,97854.0,0.0017142]
[1732489228459,0.44406664,97857.0,97854.0,0.0017142]
[1732489228727,0.12574753,97857.0,97854.0,0.0017142]
[1732489228965,0.12788602,97857.0,97856.0,0.032371]
[1732489229160,0.12686337,97857.0,97856.0,0.032371]
[1732489229374,0.42208929,97857.0,97856.0,0.001714]
[1732489229595,0.4199508,97857.0,97856.0,0.001714]
[1732489230463,0.4429508,97857.0,97856.0,0.001714]
[1732489231640,0.2277618,97857.0,97856.0,0.001714]
[1732489232096,0.00446337,97857.0,97856.0,0.032371]
[1732489233458,0.00548602,97857.0,97856.0,0.032371]
[1732489233675,0.00446337,97857.0,97856.0,0.032371]
[1732489233890,0.00102265,97867.0,97864.0,0.030654]
[1732489234105,0.00446338,97866.0,97864.0,0.030654]
[1732489234346,0.00446338,97866.0,97865.0,0.030654]
[1732489234572,0.00446338,97866.0,97857.0,0.030656]
[1732489234813,0.00446338,97866.0,97863.0,0.030654]
[1732489235075,0.10201427,97867.0,97866.0,0.030654]
[1732489235287,0.10201427,97867.0,97863.0,0.030654]
[1732489235514,0.10201427,97867.0,97864.0,0.030654]
[1732489235743,0.10201427,97867.0,97857.0,0.030656]
[1732489235744,0.10201427,97867.0,97866.0,0.030654]
[1732489235964,0.10201427,97867.0,97862.0,0.030655]
[1732489235965,0.10201427,97867.0,97865.0,0.030654]
[1732489236219,0.10201427,97867.0,97864.0,0.030654]
[1732489236454,0.00102265,97866.0,97865.0,0.030654]
[1732489236684,0.00102265,97866.0,97863.0,0.030654]
[1732489236929,0.00102265,97866.0,97864.0,0.030654]
[1732489238004,0.00102265,97866.0,97861.0,0.030655]
[1732489238236,0.00102265,97866.0,97863.0,0.030654]
[1732489238451,0.00102265,97866.0,97864.0,0.030654]
[1732489238886,0.00102265,97866.0,97865.0,0.030654]
[1732489241034,0.00102265,97866.0,97861.0,0.030655]
[1732489241686,0.00102265,97866.0,97864.0,0.030654]
[1732489242355,0.00102265,97866.0,97865.0,0.030654]
[1732489242593,0.00102265,97866.0,97864.0,0.030654]
[1732489242794,0.00102265,97866.0,97861.0,0.030655]
[1732489242990,0.00102265,97866.0,97863.0,0.030655]
[1732489243445,0.00102265,97866.0,97864.0,0.030654]
[1732489243649,0.00102265,97866.0,97863.0,0.030655]
[1732489243873,0.00102265,97866.0,97856.0,0.001714]
[1732489244086,0.00102265,97866.0,97861.0,0.030655]
[1732489244721,0.00102265,97866.0,97863.0,0.030654]
[1732489245393,0.00102265,97866.0,97864.0,0.030654]
[1732489245597,0.00102265,97866.0,97865.0,0.030654]
[1732489246019,0.00102265,97866.0,97856.0,0.001714]
[1732489246020,0.10303692,97866.0,97856.0,0.001714]
[1732489246225,0.10201427,97865.0,97856.0,0.001714]
[1732489246436,0.00102265,97864.0,97860.0,0.030655]
[1732489246715,0.00102265,97864.0,97863.0,0.030655]
[1732489247108,0.00102265,97864.0,97862.0,0.030655]
[1732489247352,0.10201427,97863.0,97862.0,0.030655]
[1732489247563,0.10201427,97863.0,97859.0,0.030656]
[1732489247820,0.10201427,97863.0,97862.0,0.030655]
[1732489248930,0.10201427,97863.0,97856.0,0.001714]
[1732489249142,0.0756,97868.0,97867.0,0.030653]
[1732489249357,0.0008575,97872.0,97871.0,0.030652]
[1732489249991,0.0008575,97872.0,97869.0,0.030653]
[1732489250201,0.0008575,97872.0,97871.0,0.030652]
[1732489250414,0.0008575,97872.0,97871.0,0.113952]
[1732489251066,0.0008575,97872.0,97871.0,0.030652]
[1732489260190,0.0008575,97872.0,97871.0,0.43114622]
[1732489260424,0.0008575,97872.0,97871.0,0.030652]
[1732489261713,0.0008575,97872.0,97871.0,0.140652]
[1732489263050,0.0008575,97872.0,97871.0,0.420052]
[1732489264125,0.0008575,97872.0,97871.0,0.52206627]
[1732489264549,0.0008575,97872.0,97871.0,0.47226627]
[1732489268227,0.0008575,97872.0,97871.0,0.50170755]
[1732489271641,0.0008575,97872.0,97871.0,0.54720755]
[1732489272325,0.0008575,97872.0,97871.0,0.54920755]
[1732489272560,0.0008575,97872.0,97871.0,0.54720755]
[1732489273254,5e-07,97872.0,97871.0,0.54920755]
[1732489274128,5e-07,97872.0,97871.0,0.54720755]
[1732489276170,5e-07,97872.0,97871.0,0.85212471]
[1732489276416,5e-07,97872.0,97871.0,0.85412471]
[1732489276661,5e-07,97872.0,97871.0,0.54920755]
[1732489277094,5e-07,97872.0,97871.0,0.27930325]
[1732489277379,5e-07,97872.0,97871.0,0.28051397]